[Event "Istanbul Open 2018"]
[Site "Istanbul"]
[Date "2018.09.04"]
[Round "5"]
[White "Bayramov, Araz"]
[Black "Kavacik, Ahmet"]
[Result "1-0"]
[ECO "D02"]
[WhiteElo "1750"]
[BlackElo "1800"]
[Annotator "NA RC"]
[PlyCount "80"]
[EventDate "2018.09.02"]
[EventType "swiss"]
[EventCountry "TUR"]
[SourceTitle "playchess.com"]
[Source "ChessBase"]
[SourceQuality "1"]
[TimeControl "5400+30"]

1. d4 {[%emt 0:01:30]} d5 {[%emt 0:02:30]} 2. Nf3 {[%emt 0:00:30]} Nf6 {[%emt 0:00:00]} 3. Bf4 {[%emt 0:00:00]} e6 {[%emt 0:01:00]} 4. e3 {[%emt 0:00:00]} c5 {[%emt 0:00:00]} 5. c3 {[%emt 0:00:00]} Bd6 {[%emt 0:00:00]} 6. Ne5 {[%emt 0:00:00]} Qc7 {[%emt 0:05:30]} 7. Nd2 {[%emt 0:00:30]} Nc6 {[%emt 0:00:30]} 8. Ndf3 {[%emt 0:00:30]} O-O {[%emt 0:02:30] D02: Damenbauernspiele} 9. Bd3 {[%emt 0:00:30]} b6 {[%emt 0:00:30]} 10. h4 {[%emt 0:00:30]} (10. Nxc6 Qxc6 11. Ne5 Qc7 12. Qf3 Ne4 13. Nc4 Bxf4 14. Qxf4 Qxf4 15. exf4 Ba6 16. Bxe4 dxe4 {½-½ (95) Giri,A (2798)-Hou,Y (2673) Wijk aan Zee 2016}) 10... Ne7 $146 {[%emt 0:02:30]} ({Vorgänger:} 10... Bb7 11. Qe2 c4 12. Bc2 b5 13. a3 a5 14. Nxc6 Bxc6 15. Bxd6 Qxd6 16. Ne5 {0-1 (41) Hilarecki,G (2023)-Krainski,A (2203) Lazy 2018}) 11. g4 {[%emt 0:05:30]} Ne4 {[%emt 0:03:30]} 12. g5 {[%emt 0:03:30]} f6 {[%emt 0:03:30]} 13. gxf6 {[%emt 0:01:30]} gxf6 {[%emt 0:00:00]} 14. Rg1+ {[%emt 0:03:30]} Kh8 {[%emt 0:00:00]} 15. Bh6 {[%emt 0:00:00]} Nf5 {[%emt 0:18:30]} 16. Bxf8 {[%emt 0:03:00]} Bxf8 {[%emt 0:04:30]} 17. Ng4 {[%emt 0:06:30]} Qf7 {[%emt 0:04:30]} 18. Qe2 {[%emt 0:05:30]} h5 {[%emt 0:03:30]} 19. Ngh2 {[%emt 0:11:30]} Qc7 {[%emt 0:13:30]} 20. O-O-O {[%emt 0:09:30]} a5 {[%emt 0:07:30]} 21. Rg6 {[%emt 0:07:30]} Qh7 {[%emt 0:08:05]} 22. Rdg1 {[%emt 0:01:30]} Ne7 $18 {[%emt 0:01:05]} 23. Rxf6 {[%emt 0:01:30]} Nxf6 {[%emt 0:04:01]} 24. Bxh7 {[%emt 0:09:30]} Kxh7 {[%emt 0:00:30]} 25. Ng5+ {[%emt 0:00:30]} Kh8 {[%emt 0:00:30]} 26. Nf7+ {[%emt 0:00:30]} Kh7 {[%emt 0:00:30]} 27. Qc2+ {[%emt 0:00:30]} Nf5 {[%emt 0:00:30]} 28. Nf3 {[%emt 0:00:30]} Bg7 {[%emt 0:04:29]} 29. N3g5+ {[%emt 0:01:30]} Kg8 {[%emt 0:00:34]} 30. Nd8 {[%emt 0:00:30]} cxd4 {[%emt 0:01:01]} 31. Ngxe6 {[%emt 0:01:30]} Ne4 {[%emt 0:02:50]} 32. exd4 {[%emt 0:01:30]} Bd7 {[%emt 0:01:42]} 33. f3 {[%emt 0:01:30]} Ned6 {[%emt 0:02:13]} 34. Nxg7 {[%emt 0:00:30]} Nxg7 {[%emt 0:00:30]} 35. Qg6 {[%emt 0:00:00]} Ndf5 {[%emt 0:01:11]} 36. Qf7+ {[%emt 0:00:00]} Kh7 {[%emt 0:00:06]} 37. Qxd7 {[%emt 0:00:30]} a4 {[%emt 0:00:23]} 38. Ne6 {[%emt 0:00:00]} Rg8 {[%emt 0:00:08]} 39. Ng5+ {[%emt 0:00:00]} Kh8 {[%emt 0:00:14]} 40. Qf7 {[%emt 0:00:30]} Nxh4 {[%emt 0:00:34]} 1-0

[Event "Istanbul Open 2018"]
[Site "Istanbul"]
[Date "2018.09.04"]
[Round "5"]
[White "Gezici, Omer Ata"]
[Black "Topsir, Furkan"]
[Result "1-0"]
[ECO "B06"]
[WhiteElo "1736"]
[BlackElo "1550"]
[Annotator "NA RC"]
[PlyCount "45"]
[EventDate "2018.09.02"]
[EventType "swiss"]
[EventCountry "TUR"]
[SourceTitle "playchess.com"]
[Source "ChessBase"]
[SourceQuality "1"]
[TimeControl "5400+30"]

1. e4 {[%emt 0:00:30]} g6 {[%emt 0:00:30]} 2. d4 {[%emt 0:00:30]} Bg7 {[%emt 0:00:00]} 3. Nf3 {[%emt 0:00:00]} d6 {[%emt 0:00:00]} 4. Nc3 {[%emt 0:00:00]} a6 {[%emt 0:00:00]} 5. a4 {[%emt 0:00:30]} Bg4 {[%emt 0:00:00]} 6. Bc4 {[%emt 0:03:30]} Nc6 {[%emt 0:03:30]} 7. Bxf7+ {[%emt 0:05:30]} Kf8 {[%emt 0:05:30]} 8. Bxg8 {[%emt 0:04:30]} Kxg8 {[%emt 0:01:30]} 9. Be3 {[%emt 0:02:30]} e5 {[%emt 0:01:30]} 10. dxe5 {[%emt 0:04:30]} Nxe5 {[%emt 0:03:30]} 11. Qd5+ {[%emt 0:02:30]} Kf8 {[%emt 0:00:00]} 12. Nxe5 {[%emt 0:04:30]} Bxe5 {[%emt 0:01:00]} 13. h3 {[%emt 0:04:30]} Bd7 {[%emt 0:00:30]} 14. O-O {[%emt 0:03:30]} Qh4 {[%emt 0:02:30]} 15. Bd4 {[%emt 0:07:30]} Re8 {[%emt 0:21:30]} 16. f4 {[%emt 0:06:30]} Bg7 {[%emt 0:10:30]} 17. Rf3 {[%emt 0:09:30]} Bc6 {[%emt 0:02:30]} 18. Qc4 {[%emt 0:02:30]} Bxd4+ {[%emt 0:02:30]} 19. Qxd4 {[%emt 0:00:00]} Ke7 {[%emt 0:00:30]} 20. b4 {[%emt 0:09:00]} Rhf8 {[%emt 0:01:30]} 21. b5 {[%emt 0:01:30]} axb5 {[%emt 0:00:30]} 22. axb5 {[%emt 0:00:00]} Bd7 {[%emt 0:00:30]} 23. Qg7+ {[%emt 0:04:00]} 1-0

[Event "Istanbul Open 2018"]
[Site "Istanbul"]
[Date "2018.09.04"]
[Round "5"]
[White "Tunca, Serhat"]
[Black "Mehrinejad, Mansour"]
[Result "1/2-1/2"]
[ECO "B45"]
[WhiteElo "1658"]
[BlackElo "1839"]
[Annotator "NA RC"]
[PlyCount "101"]
[EventDate "2018.09.02"]
[EventType "swiss"]
[EventCountry "TUR"]
[SourceTitle "playchess.com"]
[Source "ChessBase"]
[SourceQuality "1"]
[TimeControl "5400+30"]

1. e4 {[%emt 0:01:30]} c5 {[%emt 0:00:30]} 2. Nf3 {[%emt 0:00:30]} Nc6 {[%emt 0:00:30]} 3. d4 {[%emt 0:00:00]} cxd4 {[%emt 0:00:30]} 4. Nxd4 {[%emt 0:00:00]} Nf6 {[%emt 0:00:30]} 5. Nc3 {[%emt 0:00:00]} e6 {[%emt 0:00:30]} 6. Be2 {[%emt 0:02:00]} Bb4 {[%emt 0:02:30]} 7. Nxc6 {[%emt 0:06:30]} bxc6 {[%emt 0:01:30]} 8. Bd3 {[%emt 0:03:30]} O-O {[%emt 0:05:30]} 9. Bg5 {[%emt 0:01:30]} h6 {[%emt 0:03:30]} 10. Bh4 {[%emt 0:00:30]} Be7 {[%emt 0:05:30]} 11. O-O {[%emt 0:14:30]} d5 {[%emt 0:00:00]} 12. exd5 {[%emt 0:02:30]} cxd5 {[%emt 0:00:00]} 13. Bg3 {[%emt 0:04:30] B45: Sicilian Four Knights} a6 $146 {[%emt 0:04:30]} ({Predecessor:} 13... Bb7 14. Nb5 a6 15. Nd4 Qb6 16. a4 Ne4 17. Bxe4 dxe4 18. a5 Qc5 19. c3 Bd5 20. Kh1 Rfd8 {0-1 (43) Ruiz Aguilar,P (2212)-Barrientos Chavarriaga,S (2456) Buga 2009}) 14. Re1 {[%emt 0:04:30]} Bb7 {[%emt 0:03:30]} 15. Ne2 {[%emt 0:04:30]} Nd7 {[%emt 0:02:30]} 16. Nd4 {[%emt 0:01:30]} Nc5 {[%emt 0:02:30]} 17. Be2 {[%emt 0:07:30]} Bf6 {[%emt 0:04:30]} 18. f3 {[%emt 0:04:30]} Qb6 {[%emt 0:01:30]} 19. Bf2 {[%emt 0:02:30]} Qc7 {[%emt 0:00:30]} 20. c3 {[%emt 0:01:30]} Be5 {[%emt 0:01:30]} 21. g3 {[%emt 0:01:30]} Rac8 {[%emt 0:03:30]} 22. Nb3 {[%emt 0:00:30]} Nd7 {[%emt 0:01:30]} 23. f4 {[%emt 0:03:30]} Bd6 {[%emt 0:04:30]} 24. Bf3 {[%emt 0:00:00]} Nf6 {[%emt 0:08:30]} 25. Bd4 {[%emt 0:01:00]} Nd7 {[%emt 0:01:30]} 26. Qe2 {[%emt 0:01:30]} Rfe8 {[%emt 0:00:30]} 27. Qg2 {[%emt 0:01:30]} a5 {[%emt 0:02:30]} 28. a4 {[%emt 0:03:30]} Ba8 {[%emt 0:03:30]} 29. Be2 {[%emt 0:05:30]} Rb8 {[%emt 0:02:30]} 30. Bb5 {[%emt 0:00:00]} Red8 {[%emt 0:01:30]} ({Better is} 30... Re7) 31. Qe2 {[%emt 0:03:14]} Be7 {[%emt 0:07:30] [#]} 32. f5 {[%emt 0:00:29]} (32. Nxa5 $1 $16 Qxa5 33. Bxd7) 32... e5 $1 {[%emt 0:02:30]} 33. Bxe5 {[%emt 0:03:19]} Nxe5 {[%emt 0:00:00]} 34. Qxe5 {[%emt 0:00:05]} Bd6 {[%emt 0:01:00]} 35. Qe2 {[%emt 0:00:21]} d4 {[%emt 0:03:30]} 36. Nxd4 {[%emt 0:01:00]} Bxg3 {[%emt 0:00:30]} 37. Rf1 {[%emt 0:02:21]} Be5 {[%emt 0:02:38]} 38. Nf3 {[%emt 0:05:21]} Bf6 {[%emt 0:00:15]} 39. Rad1 {[%emt 0:00:30]} Qc5+ {[%emt 0:00:47]} 40. Nd4 {[%emt 0:05:42]} Qd5 {[%emt 0:01:14]} 41. Nc6 {[%emt 0:01:24]} Qc5+ {[%emt 0:07:41]} 42. Qf2 {[%emt 0:00:08]} Qxf2+ {[%emt 0:00:34]} 43. Kxf2 {[%emt 0:00:07]} Rxd1 {[%emt 0:03:38]} 44. Rxd1 {[%emt 0:00:02]} Bxc6 {[%emt 0:00:15]} 45. Bxc6 {[%emt 0:00:03]} Rxb2+ {[%emt 0:00:09]} 46. Kg1 {[%emt 0:01:29]} Rc2 {[%emt 0:02:13]} 47. Rd7 {[%emt 0:01:05]} Rc1+ {[%emt 0:02:07]} 48. Kg2 {[%emt 0:00:24]} Rc2+ {[%emt 0:00:06]} 49. Kg1 {[%emt 0:00:21]} Rc1+ {[%emt 0:00:53]} 50. Kg2 $11 {[%emt 0:00:03]} Rc2+ {[%emt 0:01:15]} 51. Kg1 {[%emt 0:01:37]} 1/2-1/2

[Event "Istanbul Open 2018"]
[Site "Istanbul"]
[Date "2018.09.04"]
[Round "5"]
[White "Ekinci, Berkay"]
[Black "Ocakacan, Deniz"]
[Result "0-1"]
[ECO "A24"]
[WhiteElo "1612"]
[BlackElo "1650"]
[Annotator "NA RC"]
[PlyCount "110"]
[EventDate "2018.09.02"]
[EventType "swiss"]
[EventCountry "TUR"]
[SourceTitle "playchess.com"]
[Source "ChessBase"]
[SourceQuality "1"]
[TimeControl "5400+30"]

1. c4 {[%emt 0:00:30]} Nf6 {[%emt 0:03:30]} 2. Nc3 {[%emt 0:00:00]} g6 {[%emt 0:00:30]} 3. g3 {[%emt 0:00:00]} Bg7 {[%emt 0:00:30]} 4. Bg2 {[%emt 0:00:30]} O-O {[%emt 0:00:30]} 5. d3 {[%emt 0:01:30]} c6 {[%emt 0:00:30]} 6. e4 {[%emt 0:01:30]} d6 {[%emt 0:01:30]} 7. Nge2 {[%emt 0:01:30]} e5 {[%emt 0:03:30]} 8. O-O {[%emt 0:00:30]} Be6 {[%emt 0:05:30]} 9. Bg5 {[%emt 0:11:30]} Qd7 {[%emt 0:04:30]} 10. Qd2 {[%emt 0:07:30]} Bh3 {[%emt 0:05:30]} 11. f4 {[%emt 0:03:30]} Bxg2 {[%emt 0:04:30]} 12. Kxg2 {[%emt 0:00:30]} exf4 {[%emt 0:01:30]} 13. Rxf4 {[%emt 0:08:30]} Qe6 {[%emt 0:31:30]} 14. Raf1 {[%emt 0:14:30]} Nbd7 {[%emt 0:00:30]} 15. h3 {[%emt 0:07:30]} h6 {[%emt 0:02:30]} 16. Bxf6 {[%emt 0:01:30]} Nxf6 {[%emt 0:02:30]} 17. b4 {[%emt 0:03:30]} Nd7 {[%emt 0:05:30]} 18. R4f2 {[%emt 0:05:30]} a5 {[%emt 0:03:30]} 19. b5 {[%emt 0:04:30]} Nc5 {[%emt 0:02:03]} 20. Qe3 {[%emt 0:03:30]} Rae8 {[%emt 0:05:12]} 21. bxc6 {[%emt 0:04:34]} bxc6 {[%emt 0:00:08]} 22. Nf4 {[%emt 0:02:34]} Qe7 {[%emt 0:00:26]} 23. Nce2 {[%emt 0:00:50]} Rb8 {[%emt 0:01:00]} 24. Nd4 {[%emt 0:01:14]} Qc7 {[%emt 0:00:54]} 25. Nf3 {[%emt 0:01:00]} Rfe8 {[%emt 0:02:05]} 26. Re2 {[%emt 0:02:42]} Na4 {[%emt 0:02:26]} 27. d4 {[%emt 0:02:43]} Rb4 {[%emt 0:00:21]} 28. Rc1 {[%emt 0:01:16]} Nb2 {[%emt 0:02:08]} 29. Nd3 {[%emt 0:02:20]} Nxc4 {[%emt 0:01:03]} 30. Qf4 {[%emt 0:00:52]} Ra4 {[%emt 0:00:56]} 31. h4 {[%emt 0:01:11]} Qb8 {[%emt 0:01:36]} 32. Rec2 {[%emt 0:01:57]} d5 {[%emt 0:00:30]} 33. e5 {[%emt 0:00:28]} Ra3 {[%emt 0:00:08]} 34. Rc3 {[%emt 0:02:44]} Rxa2+ {[%emt 0:00:18]} 35. Kh1 {[%emt 0:00:01]} a4 {[%emt 0:01:04]} 36. Nc5 {[%emt 0:00:56]} Qc8 {[%emt 0:01:21]} 37. g4 {[%emt 0:00:41]} a3 {[%emt 0:00:08]} 38. Nb3 {[%emt 0:01:20]} Rb2 {[%emt 0:00:07]} 39. Na1 {[%emt 0:00:37]} a2 {[%emt 0:00:57]} 40. Rf1 {[%emt 0:00:32]} Qd7 {[%emt 0:00:33]} 41. Ne1 {[%emt 0:00:36]} Rb1 {[%emt 0:00:46]} 42. Nec2 {[%emt 0:00:29]} Reb8 {[%emt 0:00:21]} 43. Rcf3 {[%emt 0:00:41]} Rxf1+ {[%emt 0:00:21]} 44. Rxf1 {[%emt 0:00:01]} h5 {[%emt 0:00:35]} 45. gxh5 {[%emt 0:00:21]} Qh3+ {[%emt 0:00:31]} 46. Kg1 {[%emt 0:00:22]} Qe6 {[%emt 0:03:15]} 47. h6 {[%emt 0:00:50]} Bh8 {[%emt 0:00:11]} 48. Qg3 {[%emt 0:01:21]} Rb1 {[%emt 0:00:36]} 49. Nb3 {[%emt 0:00:31]} Rxf1+ {[%emt 0:00:10]} 50. Kxf1 {[%emt 0:00:01]} Qf5+ {[%emt 0:00:05]} 51. Qf2 {[%emt 0:00:32]} Qh3+ {[%emt 0:00:14]} 52. Kg1 {[%emt 0:01:06]} Qxb3 {[%emt 0:00:08]} 53. h7+ {[%emt 0:00:05]} Kf8 {[%emt 0:00:05]} 54. Qf4 {[%emt 0:00:24]} Qxc2 {[%emt 0:00:30]} 55. Qh6+ {[%emt 0:00:09]} Ke8 {[%emt 0:00:11]} 0-1

[Event "Istanbul Open 2018"]
[Site "Istanbul"]
[Date "2018.09.04"]
[Round "5"]
[White "Ersoy, Emre"]
[Black "Genc, Nuri Gencay"]
[Result "1-0"]
[ECO "B13"]
[WhiteElo "1557"]
[BlackElo "1690"]
[Annotator "NA RC"]
[PlyCount "91"]
[EventDate "2018.09.02"]
[EventType "swiss"]
[EventCountry "TUR"]
[SourceTitle "playchess.com"]
[Source "ChessBase"]
[SourceQuality "1"]
[TimeControl "5400+30"]

1. e4 {[%emt 0:00:30]} c6 {[%emt 0:02:30]} 2. d4 {[%emt 0:00:00]} d5 {[%emt 0:00:30]} 3. exd5 {[%emt 0:00:00]} cxd5 {[%emt 0:00:00]} 4. Bd3 {[%emt 0:00:30]} Nc6 {[%emt 0:00:00]} 5. c3 {[%emt 0:00:00]} Nf6 {[%emt 0:00:30]} 6. Bf4 {[%emt 0:00:00]} g6 {[%emt 0:06:30]} 7. Nf3 {[%emt 0:02:30]} Bg7 {[%emt 0:00:30]} 8. Nbd2 {[%emt 0:00:30]} O-O {[%emt 0:00:30]} 9. O-O {[%emt 0:01:30]} Nh5 {[%emt 0:01:30]} 10. Be3 {[%emt 0:00:30]} Bg4 {[%emt 0:09:30]} 11. h3 {[%emt 0:01:30]} Bxf3 {[%emt 0:00:30]} 12. Nxf3 {[%emt 0:01:30]} Rc8 {[%emt 0:04:30]} 13. Qd2 {[%emt 0:06:30]} Re8 {[%emt 0:00:30]} 14. Bh6 {[%emt 0:01:30]} e6 {[%emt 0:09:30]} 15. Bxg7 {[%emt 0:05:30]} Kxg7 {[%emt 0:00:30]} 16. Rfe1 {[%emt 0:03:30]} Nf6 {[%emt 0:11:30]} 17. Ne5 {[%emt 0:10:30]} Nxe5 {[%emt 0:02:30]} 18. Rxe5 {[%emt 0:00:30]} Nd7 {[%emt 0:00:30]} 19. Re3 {[%emt 0:09:30]} a6 {[%emt 0:00:30]} 20. h4 {[%emt 0:04:30]} h5 {[%emt 0:00:30]} 21. g3 {[%emt 0:05:30]} Nf6 {[%emt 0:01:30]} 22. Rf3 {[%emt 0:09:30]} Rc7 {[%emt 0:04:30]} 23. Re1 {[%emt 0:07:30]} Ng4 {[%emt 0:07:30]} 24. Rf4 {[%emt 0:04:30]} f5 {[%emt 0:04:30]} 25. Rf3 {[%emt 0:05:53]} Rce7 {[%emt 0:06:30]} 26. Be2 {[%emt 0:09:08]} e5 {[%emt 0:04:30]} 27. Bd1 {[%emt 0:06:05]} e4 {[%emt 0:02:36]} 28. Rf4 {[%emt 0:00:18]} e3 {[%emt 0:00:09]} 29. fxe3 {[%emt 0:01:07]} Nxe3 {[%emt 0:00:32]} 30. Bb3 {[%emt 0:03:38]} Nc4 {[%emt 0:00:41]} 31. Rxe7+ {[%emt 0:00:13]} Qxe7 {[%emt 0:00:10]} 32. Bxc4 {[%emt 0:00:19]} dxc4 {[%emt 0:00:02]} 33. Kf2 {[%emt 0:00:43]} b5 {[%emt 0:00:27]} 34. Rf3 {[%emt 0:00:40]} Qb7 {[%emt 0:04:29]} 35. Re3 {[%emt 0:00:22]} Rf8 {[%emt 0:01:42]} 36. Qe2 {[%emt 0:00:22]} Rf7 {[%emt 0:00:16]} 37. Re8 {[%emt 0:00:56]} Kh7 {[%emt 0:02:48]} 38. Qe5 {[%emt 0:00:32]} Rg7 {[%emt 0:00:01]} 39. Rb8 {[%emt 0:00:41]} Qh1 {[%emt 0:12:15]} 40. Qe8 {[%emt 0:00:18]} Qh2+ {[%emt 0:00:14]} 41. Kf3 {[%emt 0:00:30]} Qh1+ {[%emt 0:00:10]} 42. Kf4 {[%emt 0:00:20]} Qf1+ {[%emt 0:01:54]} 43. Kg5 {[%emt 0:00:20]} Qc1+ {[%emt 0:00:31]} 44. Kf6 {[%emt 0:00:10]} Kh6 {[%emt 0:00:32]} 45. Qh8+ {[%emt 0:00:20]} Rh7 {[%emt 0:00:17]} 46. Qf8+ {[%emt 0:00:13]} 1-0

[Event "Istanbul Open 2018"]
[Site "Istanbul"]
[Date "2018.09.05"]
[Round "6"]
[White "Gulsoy, Mustafa Alpago"]
[Black "Emir, Emirhan"]
[Result "1-0"]
[ECO "C02"]
[WhiteElo "2061"]
[BlackElo "1852"]
[Annotator "NA"]
[PlyCount "63"]
[EventDate "2018.09.02"]
[EventType "swiss"]
[EventCountry "TUR"]
[SourceTitle "playchess.com"]
[Source "ChessBase"]
[SourceQuality "1"]
[TimeControl "5400+30"]

1. e4 {[%emt 0:00:30]} e6 {[%emt 0:18:30]} 2. d4 {[%emt 0:00:00]} d5 {[%emt 0:00:30]} 3. e5 {[%emt 0:00:00]} c5 {[%emt 0:00:00]} 4. c3 {[%emt 0:00:00]} Nc6 {[%emt 0:00:00]} 5. Nf3 {[%emt 0:00:00]} Qb6 {[%emt 0:00:30]} 6. Na3 {[%emt 0:00:30]} cxd4 {[%emt 0:00:30]} 7. cxd4 {[%emt 0:00:00]} f6 {[%emt 0:00:30]} 8. Nc2 {[%emt 0:00:00]} Bd7 {[%emt 0:02:30]} 9. Be2 {[%emt 0:02:30]} fxe5 {[%emt 0:00:30]} 10. dxe5 {[%emt 0:00:30]} g6 {[%emt 0:01:30]} 11. O-O {[%emt 0:02:30]} Bg7 {[%emt 0:00:30]} 12. Re1 {[%emt 0:00:30]} Nh6 {[%emt 0:01:30]} 13. Ncd4 {[%emt 0:04:30]} Nf7 {[%emt 0:02:30]} 14. Be3 {[%emt 0:03:30]} Qd8 {[%emt 0:07:30]} 15. Nxc6 {[%emt 0:03:30]} bxc6 {[%emt 0:00:30]} 16. Bc5 {[%emt 0:00:00]} Qc7 {[%emt 0:01:30]} 17. Bf1 {[%emt 0:04:00]} Bf8 {[%emt 0:10:30]} 18. Rc1 {[%emt 0:03:30]} Bxc5 {[%emt 0:02:30]} 19. Rxc5 {[%emt 0:00:00]} O-O {[%emt 0:00:30]} 20. Qc2 {[%emt 0:00:00]} Nd8 {[%emt 0:01:30]} 21. Rc3 {[%emt 0:02:30]} Qb6 {[%emt 0:02:30]} 22. h4 {[%emt 0:01:30]} Qb4 {[%emt 0:03:30]} 23. h5 {[%emt 0:00:30]} Qg4 {[%emt 0:01:30]} 24. hxg6 {[%emt 0:00:30]} hxg6 {[%emt 0:00:30]} 25. Nh2 {[%emt 0:00:30]} Qf5 {[%emt 0:07:30]} 26. Bd3 {[%emt 0:00:30]} Qf4 {[%emt 0:02:30]} 27. Bxg6 {[%emt 0:00:30]} Rf5 {[%emt 0:02:30]} 28. Bxf5 {[%emt 0:00:30]} Qxf5 {[%emt 0:00:00]} 29. Rg3+ {[%emt 0:00:00]} Kh7 {[%emt 0:00:00]} 30. Qc5 {[%emt 0:00:00]} Qf7 {[%emt 0:00:30]} 31. Ng4 {[%emt 0:00:30]} Nb7 {[%emt 0:00:30]} 32. Qe3 {[%emt 0:00:00]} 1-0

[Event "Istanbul Open 2018"]
[Site "Istanbul"]
[Date "2018.09.05"]
[Round "6"]
[White "Eryigit, Yakup"]
[Black "Abishli, Oghuz"]
[Result "1-0"]
[ECO "A35"]
[WhiteElo "2030"]
[BlackElo "2099"]
[Annotator "NA RC"]
[PlyCount "51"]
[EventDate "2018.09.02"]
[EventType "swiss"]
[EventCountry "TUR"]
[SourceTitle "playchess.com"]
[Source "ChessBase"]
[SourceQuality "1"]
[TimeControl "5400+30"]

1. Nf3 {[%emt 0:00:30]} c5 {[%emt 0:00:30]} 2. c4 {[%emt 0:01:30]} Nc6 {[%emt 0:00:00]} 3. Nc3 {[%emt 0:00:00]} Nd4 {[%emt 0:00:00]} 4. e3 {[%emt 0:02:00]} Nxf3+ {[%emt 0:00:30]} 5. gxf3 {[%emt 0:01:30]} g6 {[%emt 0:02:30]} 6. h4 {[%emt 0:01:30]} Nf6 {[%emt 0:04:30]} 7. b3 {[%emt 0:06:30]} Bg7 {[%emt 0:01:30]} 8. Bb2 {[%emt 0:00:00]} O-O {[%emt 0:10:30]} 9. h5 {[%emt 0:10:00]} d5 {[%emt 0:12:30]} 10. hxg6 {[%emt 0:02:30]} hxg6 {[%emt 0:00:00]} 11. Bd3 {[%emt 0:06:30]} d4 {[%emt 0:07:00]} 12. exd4 {[%emt 0:00:30]} cxd4 {[%emt 0:01:30]} 13. Ne2 {[%emt 0:00:30]} e5 {[%emt 0:00:30]} 14. Qc2 {[%emt 0:00:30]} b6 {[%emt 0:11:30]} 15. O-O-O {[%emt 0:15:30]} Bb7 {[%emt 0:01:30]} 16. Rh3 {[%emt 0:00:30]} Qd7 {[%emt 0:26:18]} 17. Rdh1 {[%emt 0:03:30]} e4 {[%emt 0:00:45]} 18. fxe4 {[%emt 0:01:30]} Ng4 {[%emt 0:00:14]} 19. Rh7 {[%emt 0:18:30]} Rad8 {[%emt 0:05:41]} 20. f3 {[%emt 0:02:30]} Ne5 {[%emt 0:00:31]} 21. Bxd4 {[%emt 0:03:30]} f6 {[%emt 0:03:44]} 22. c5 {[%emt 0:07:06]} b5 {[%emt 0:00:39]} (22... bxc5 $142 23. Bc4+ (23. Bxc5 $2 Nxd3+ 24. Kb1 Nxc5 $19) 23... Nxc4 24. Qxc4+ Qf7) 23. Nf4 {[%emt 0:04:03]} Nxd3+ $2 {[%emt 0:02:46]} (23... Rf7) 24. Qxd3 {[%emt 0:00:20]} Qxd4 {[%emt 0:01:35] [#]} 25. Rxg7+ $18 {[%emt 0:00:05]} Kxg7 {[%emt 0:00:22]} 26. Ne6+ {[%emt 0:00:05]} 1-0

[Event "Istanbul Open 2018"]
[Site "Istanbul"]
[Date "2018.09.05"]
[Round "6"]
[White "Ozkan, Taha"]
[Black "Kuseyri, Mehmet Ali"]
[Result "1-0"]
[ECO "D94"]
[WhiteElo "1997"]
[BlackElo "1962"]
[Annotator "NA"]
[PlyCount "53"]
[EventDate "2018.09.02"]
[EventType "swiss"]
[EventCountry "TUR"]
[SourceTitle "playchess.com"]
[Source "ChessBase"]
[SourceQuality "1"]
[TimeControl "5400+30"]

1. d4 {[%emt 0:00:30]} d5 {[%emt 0:00:30]} 2. Nf3 {[%emt 0:00:00]} Nf6 {[%emt 0:00:00]} 3. e3 {[%emt 0:00:00]} g6 {[%emt 0:01:00]} 4. c4 {[%emt 0:00:00]} c6 {[%emt 0:00:30]} 5. Nc3 {[%emt 0:00:00]} Bg7 {[%emt 0:00:00]} 6. Be2 {[%emt 0:02:30]} O-O {[%emt 0:00:00]} 7. O-O {[%emt 0:00:30]} Bg4 {[%emt 0:01:30]} 8. b3 {[%emt 0:01:30]} Nbd7 {[%emt 0:01:30]} 9. Bb2 {[%emt 0:01:30]} Re8 {[%emt 0:04:30]} 10. h3 {[%emt 0:05:30]} Bxf3 {[%emt 0:00:30]} 11. Bxf3 {[%emt 0:00:30]} dxc4 {[%emt 0:00:30]} 12. bxc4 {[%emt 0:00:00]} e5 {[%emt 0:00:30]} 13. Qc2 {[%emt 0:09:00]} exd4 {[%emt 0:02:30]} 14. exd4 {[%emt 0:01:30]} Nb6 {[%emt 0:00:30]} 15. Qb3 {[%emt 0:10:30]} Qd7 {[%emt 0:02:30]} 16. Rfd1 {[%emt 0:02:30]} Rad8 {[%emt 0:00:30]} 17. a4 {[%emt 0:04:30]} Qc8 {[%emt 0:05:30]} 18. Rac1 {[%emt 0:07:30]} Nfd7 {[%emt 0:05:30]} 19. c5 {[%emt 0:17:30]} Na8 {[%emt 0:00:30]} 20. Ne4 {[%emt 0:00:30]} Bf8 {[%emt 0:03:30]} 21. Ng5 {[%emt 0:01:30]} Re7 {[%emt 0:01:30]} 22. d5 {[%emt 0:03:30]} Bh6 {[%emt 0:06:30]} 23. d6 {[%emt 0:03:30]} Bxg5 {[%emt 0:00:00]} 24. dxe7 {[%emt 0:01:30]} Bxe7 {[%emt 0:00:00]} 25. Bg4 {[%emt 0:00:30]} Nc7 {[%emt 0:00:30]} 26. Qe3 {[%emt 0:00:30]} h5 {[%emt 0:00:30]} 27. Qh6 {[%emt 0:00:30]} 1-0

[Event "Istanbul Open 2018"]
[Site "Istanbul"]
[Date "2018.09.05"]
[Round "6"]
[White "Akin, Yagiz Cinar"]
[Black "Tahaoglu, Ugur Barkin"]
[Result "1-0"]
[ECO "C42"]
[WhiteElo "1963"]
[BlackElo "1893"]
[Annotator "NA"]
[PlyCount "49"]
[EventDate "2018.09.02"]
[EventType "swiss"]
[EventCountry "TUR"]
[SourceTitle "playchess.com"]
[Source "ChessBase"]
[SourceQuality "1"]
[TimeControl "5400+30"]

1. e4 {[%emt 0:00:30]} e5 {[%emt 0:00:30]} 2. Nf3 {[%emt 0:00:00]} Nf6 {[%emt 0:00:30]} 3. Nxe5 {[%emt 0:00:00]} d6 {[%emt 0:00:00]} 4. Nf3 {[%emt 0:00:00]} Nxe4 {[%emt 0:00:00]} 5. Nc3 {[%emt 0:00:00]} Nxc3 {[%emt 0:00:30]} 6. dxc3 {[%emt 0:00:00]} Be7 {[%emt 0:00:00]} 7. Be3 {[%emt 0:00:00]} Nc6 {[%emt 0:00:00]} 8. Qd2 {[%emt 0:00:30]} Be6 {[%emt 0:00:30]} 9. O-O-O {[%emt 0:00:30]} Qd7 {[%emt 0:02:30]} 10. Kb1 {[%emt 0:03:30]} a6 {[%emt 0:02:30]} 11. h3 {[%emt 0:00:30]} h6 {[%emt 0:04:30]} 12. g4 {[%emt 0:00:30]} O-O-O {[%emt 0:21:30]} 13. Bg2 {[%emt 0:00:30]} Bf6 {[%emt 0:09:30]} 14. Nd4 {[%emt 0:06:30]} Nxd4 {[%emt 0:01:30]} 15. Bxd4 {[%emt 0:03:30]} Kb8 {[%emt 0:06:30]} 16. Bxf6 {[%emt 0:01:30]} gxf6 {[%emt 0:00:00]} 17. f4 {[%emt 0:00:30]} f5 {[%emt 0:03:00]} 18. g5 {[%emt 0:03:30]} hxg5 {[%emt 0:02:30]} 19. fxg5 {[%emt 0:00:30]} Rh4 {[%emt 0:00:30]} 20. Qf2 {[%emt 0:00:30]} Rdh8 {[%emt 0:06:30]} 21. Rd4 {[%emt 0:01:30]} f4 {[%emt 0:17:30]} 22. Rxf4 {[%emt 0:01:30]} Rxf4 {[%emt 0:00:30]} 23. Qxf4 {[%emt 0:00:00]} Rxh3 {[%emt 0:01:13]} 24. Bxh3 {[%emt 0:02:00]} Bxh3 {[%emt 0:00:03]} 25. Qe3 {[%emt 0:00:30]} 1-0